Cogmind - Beta 12 @@@ ROGUE MODE // 2023.03.08 @ 21:24:11 Player: Erebos Result: Destroyed by G-34 Mercenary with Small Laser Performance ------------- Evolutions (0) 0 Regions Visited (1) 200 Robots Destroyed (16) 80 Value Destroyed (364) 364 Prototype IDs (2) 40 Alien Tech Used (0) 0 Bonus (0) 0 TOTAL SCORE: 684 Bonus ------- None Cogmind --------- Core Integrity 0/250 Matter 56/300 Energy 100/100 System Corruption 0% Temperature Cool (6) Movement Core (700) Ox13 Location -10/Materials Parts ------- > --- POWER (1) -------- (None) > --- PROPULSION (2) --- (None) > --- UTILITY (2) ------ High-capacity Storage Unit Targeting Computer > --- WEAPON (2) ------- (None) > --- INVENTORY (20) --- Light Nuclear Core Heat Sink Improved Heat Sink High-capacity Storage Unit Structural Scanner Sensor Array Terrain Scan Processor Targeting Computer Peak State ------------ > --- POWER ------------ Light Nuclear Core > --- PROPULSION ------- Aluminum Leg Aluminum Leg > --- UTILITY ---------- High-capacity Storage Unit Targeting Computer > --- WEAPON ----------- Grenade Launcher > --- INVENTORY -------- Ion Engine Heat Sink Improved Heat Sink High-capacity Storage Unit Structural Scanner Sensor Array Targeting Computer Light Assault Rifle [Rating: 9] Favorites ----------- Power Ion Engine Engine Ion Engine Power Core Light Nuclear Core Propulsion Aluminum Leg Leg Aluminum Leg Utility High-capacity Storage Unit Storage High-capacity Storage Unit Processor Targeting Computer Weapon Grenade Launcher Ballistic Gun Light Assault Rifle Launcher Grenade Launcher Build | -11 -10 ------- Run | Jun Mat Slots Evolved . | . . Power . | . . Propulsion . | . . Utility . | . . Weapon . | . . Parts Attached 12 | 5 7 Power 3 | 1 2 Engine 2 | 1 1 Core 1 | . 1 Reactor . | . . Propulsion 3 | 2 1 Treads . | . . Leg 3 | 2 1 Wheel . | . . Hover . | . . Flight . | . . Utility 3 | 1 2 Device . | . . Storage 2 | 1 1 Processor 1 | . 1 Hackware . | . . Protection . | . . Artifact . | . . Weapon 3 | 1 2 Energy Gun . | . . Energy Cannon . | . . Ballistic Gun 2 | 1 1 Ballistic Cannon . | . . Launcher 1 | . 1 Special Weapon . | . . Impact Weapon . | . . Slashing Weapon . | . . Piercing Weapon . | . . Special Melee Weapon . | . . Unidentified Prototypes . | . . Parts Lost 5 | . 5 Power 1 | . 1 Propulsion 2 | . 2 Utility . | . . Weapon 2 | . 2 Highest Loss Streak 5 | . 5 To Critical Strikes . | . . Average Slot Usage (%) 77 | . 77 Engine 12 | . 12 Leg 25 | . 25 Storage 14 | . 14 Processor 10 | . 10 Ballistic Gun 2 | . 2 Launcher 11 | . 11 Naked Turns . | . . Heaviest Build 48 | 11 48 Greatest Support 20 | 20 20 Greatest Overweight (x) 13 | 1 13 Average Overweight (x) 1 | . 1 Largest Inventory Capacity 20 | 8 20 Average Capacity 16 | 6 17 Most Carried 9 | 2 9 Average Carried 5 | . 5 Final Capacity 20 | 8 20 Final Carried 8 | . 8 Class Distribution -------------------- 100% | Mutant Dominant Class ---------------- Mutant | -10/Materials Resources | -11 -10 ----------- Run | Jun Mat Matter Collected 254 | 213 41 Remotely . | . . Salvage Created 278 | . 278 Parts 26 | . 26 Haulers Intercepted . | . . Recyclers Shooed . | . . Parts Field Recycled . | . . Retrieved Matter . | . . Parts Self-Destructed . | . . Prevented . | . . Kills | -11 -10 ------- Run | Jun Mat Combat Hostiles Destroyed 10 | . 10 Guns 1 | . 1 AOE 9 | . 9 Classes Destroyed 6 | . 6 Worker 1 | . 1 Builder 2 | . 2 Tunneler 1 | . 1 Watcher 2 | . 2 Swarmer 3 | . 3 Grunt 7 | . 7 Best Kill Streak 6 | . 6 Combat Bots Only 3 | . 3 Max Kills in Single Turn 3 | . 3 Gunslinging . | . . Exploded 3 | . 3 Melee . | . . Uniques/NPCs Destroyed . | . . Combat | -11 -10 -------- Run | Jun Mat Damage Taken 728 | . 728 Core 253 | . 253 Absorbed by Shields . | . . Core Remaining (%) 100 | 100 . Volleys Fired 41 | . 41 Largest 1 | . 1 Hottest 30 | . 30 Shots Fired 41 | . 41 Gun 23 | . 23 Cannon . | . . Launcher 18 | . 18 Special . | . . Kinetic 23 | . 23 Thermal . | . . Explosive 18 | . 18 Electromagnetic . | . . Robot Hit Streak 7 | . 7 Robot Miss Streak 2 | . 2 Penetration Max . | . . Secondary Targets . | . . Shots Hit Robots 20 | . 20 Core Hits 32 | . 32 Critical Kills . | . . Critical Parts Destroyed 1 | . 1 Critical Strikes 1 | . 1 Destroy 1 | . 1 Melee Attacks . | . . Impact . | . . Slashing . | . . Piercing . | . . Sneak Attacks . | . . Combat Hostiles . | . . Follow-up Attacks . | . . Damage Inflicted 787 | . 787 Guns 128 | . 128 Cannons . | . . Explosions 659 | . 659 Melee . | . . Ramming . | . . Kinetic 128 | . 128 Thermal . | . . Explosive 637 | . 637 Electromagnetic 22 | . 22 Impact . | . . Slashing . | . . Piercing . | . . Highest Corruption . | . . Average Corruption . | . . Corruption Purged . | . . Corruption Blocked . | . . Overload Shots . | . . Overflow Damage 5 | . 5 Projectiles . | . . Explosions 5 | . 5 Melee . | . . Knockbacks . | . . Impact . | . . Kinetic . | . . Secondary . | . . Self-Inflicted Damage 147 | . 147 Shots 6 | . 6 Rammed . | . . Targets Rammed . | . . Kicked . | . . Crushed . | . . Highest Temperature 15 | . 15 Average Temperature 5 | . 5 Received Heat Transfer 312 | . 312 Siege Activations . | . . Robots Corrupted . | . . Combat Hostiles . | . . Parts Fried . | . . Impact Corruptions . | . . Robots Melted . | . . Combat Hostiles . | . . Parts Melted . | . . Heat Transferred . | . . Parts Sabotaged . | . . Parts Stolen . | . . Parts Stripped . | . . Power Chain Reactions 1 | . 1 Missiles Intercepted . | . . Alert | -11 -10 ------- Run | Jun Mat Peak Influence 313 | . 313 Initial . | . . Average 127 | . 141 Maximum Alert Level 1 | . 1 Low Security (%) 72 | 100 68 Level 1 27 | . 31 Level 2 . | . . Level 3 . | . . Level 4 . | . . Level 5 . | . . High Security . | . . Max Security . | . . Squads Dispatched 3 | . 3 Investigation 1 | . 1 Extermination . | . . Reinforcement 2 | . 2 Assault . | . . Garrison . | . . Intercept . | . . Searches Triggered . | . . Construction Impeded . | . . Haulers Reinforced . | . . Active Scanning Responses . | . . Cargo Convoy Interrupts . | . . Stealth | -11 -10 --------- Run | Jun Mat Distress Signals 1 | . 1 Communications Jammed . | . . Distress Signals . | . . Times Spotted 13 | . 13 Peak Tracking Total 3 | . 3 Tactical Retreats . | . . Traps | -11 -10 ------- Run | Jun Mat Traps Triggered . | . . Indirectly . | . . Trap Hack Attempts . | . . Triggered . | . . Disarmed . | . . Reprogrammed . | . . Reused . | . . Traps Extracted . | . . Installed . | . . Triggered . | . . Machines | -11 -10 ---------- Run | Jun Mat Machines Disabled 2 | . 2 Max in Single Turn 1 | . 1 Machines Repaired . | . . Machines Sabotaged . | . . Overloaded Fab Kills . | . . Hacking | -11 -10 --------- Run | Jun Mat Machines Accessed 3 | . 3 Terminals 3 | . 3 Fabricators . | . . Repair Stations . | . . Recycling Units . | . . Scanalyzers . | . . Garrison Access . | . . Total Hacks 10 | . 10 Successful 3 | . 3 Failed 7 | . 7 Catastrophic . | . . Database Lockouts . | . . Manual . | . . Terminals 10 | . 10 Fabricators . | . . Repair Stations . | . . Recycling Units . | . . Scanalyzers . | . . Garrison Access . | . . Terminal Hacks 3 | . 3 Prototype ID Bank 1 | . 1 Alert Level 2 | . 2 Fabricator Hacks . | . . Repair Station Hacks . | . . Recycling Unit Hacks . | . . Scanalyzer . | . . Garrison Access Hacks . | . . Unauthorized Hacks . | . . Terminals . | . . Fabricators . | . . Repair Stations . | . . Recycling Units . | . . Scanalyzers . | . . Garrison Access . | . . Data Cores Recovered . | . . Used . | . . Hacking Detections 3 | . 3 Full Trace Events 1 | . 1 Feedback Events . | . . Feedback Blocked . | . . Robot Schematics Acquired . | . . Robots Built . | . . Authchips . | . . Time . | . . Total Robot Build Rating . | . . Part Schematics Acquired . | . . Parts Built . | . . Authchips . | . . Time . | . . Total Part Build Rating . | . . Parts Repaired . | . . Time . | . . Parts Recycled . | . . Recycled Matter . | . . Retrieved Matter . | . . Retrieved Components . | . . Parts Scanalyzed . | . . Part Schematics Acquired . | . . Parts Damaged . | . . Bothacking | -11 -10 ------------ Run | Jun Mat Used RIF Installer . | . . Robots Hacked . | . . Non-combat . | . . Combat . | . . Robot Hacks Applied . | . . Relay Couplers Released . | . . Fabnet Peak Effective % . | . . Robots Rewired . | . . Allies Hacked . | . . Hacks Repelled . | . . Allies | -11 -10 -------- Run | Jun Mat Total Allies . | . . Largest Group . | . . Highest-Rated Group . | . . Highest-Rated Ally . | . . Total Orders . | . . Ally Attacks . | . . Total Damage . | . . Kills . | . . Allies Corrupted . | . . Allies Melted . | . . Intel | -11 -10 ------- Run | Jun Mat Robot Analysis Total . | . . Derelict Logs Recovered . | . . Drone Launches . | . . Drone Recoveries . | . . Exploration | -11 -10 ------------- Run | Jun Mat Turns Passed 609 | 62 547 Spaces Moved 263 | 48 215 Core 21 | 18 3 Treads . | . . Legs 242 | 30 212 Wheels . | . . Hover . | . . Flight . | . . Fastest Speed 50 | 50 120 Average Speed 191 | 107 210 Slowest Speed 700 | 120 700 Overloaded Moves . | . . Propulsion Burnouts . | . . Robots Hopped . | . . Cave-ins Triggered . | . . Exploration Rate (%) 21 | 5 38 Regions Visited 1 Branch Regions . Pre-discovered Areas . | . . Known Exits Taken . | . . Unknown Exits Taken 1 | 1 . Scrap Searched . | . . Spaces Dug . | . . Terrain Destroyed 104 | . 104 Melee . | . . Projectile . | . . AOE 104 | . 104 Terrain Rammed . | . . Walls Destroyed . | . . Machines Disabled . | . . Actions | -11 -10 --------- Run | Jun Mat Total 336 | 59 277 Wait . | . . Move 262 | 47 215 Hop . | . . Pick Up 18 | 6 12 Fast Attach . | . . Attach 8 | 5 3 Detach . | . . Swap 4 | . 4 Drop 3 | 1 2 Fire 41 | . 41 Melee . | . . Ram . | . . Kick . | . . Crush . | . . Escape Stasis . | . . Rewire . | . . Trap . | . . Miscellaneous . | . . Route ------- -11/Junkyard -10/Materials (discovered 1 exit: [*Min]) History --------- Turn | Location | Event 15 | -11/Junkyard | Discovered new exit (range 15) 63 | -11/Junkyard | Entered Materials 305 | -10/Materials | Build established: Mutant 454 | -10/Materials | Discovered new exit (range 15) 582 | -10/Materials | Core integrity fell below 50% 598 | -10/Materials | Core integrity fell below 20% 610 | -10/Materials | Destroyed by G-34 Mercenary with Small Laser Last Messages --------------- Lgt. Assault Rifle destroyed. U-05 Engineer lays Concrete. K-01 Serf collects debris. U-05 Engineer lays Concrete. K-01 Serf collects debris. U-05 Engineer lays Concrete. K-01 Serf collects debris. U-05 Engineer lays Concrete. U-05 Engineer builds a Wall. U-05 Engineer lays Concrete. K-01 Serf collects debris. U-05 Engineer lays Concrete. K-01 Serf collects debris. U-05 Engineer lays Concrete. K-01 Serf collects debris. U-05 Engineer lays Concrete. K-01 Serf collects debris. U-05 Engineer lays Concrete. U-05 Engineer builds a Door. U-05 Engineer lays Concrete. Map ----- +----------------------------------------------------+ | ????????????"?# #??????????????????????????????? | | ??????????""" + #??????????????????????????????? | | ??????????? # ########???????????????????????? | | ???????????? # ## ???????????????????????? | | ????????????? # ## """ ?????????????????????? | | ???????####### ## """ #????????????????????? | | ???????# ## # """ #????????????????????? | | ???????# ## # #????????????????????? | | ??????## # # """ #????????????????????? | | ??????# # #% ## """ #????????????????????? | | ??????# #* # """ #????????????????????? | | ###### =**## ## #????????????????????? | | # #/### #####+###########+#???????????? | | # """ =[ = = ??????? | | # """ %### ??????? | | # """ ### # # "" ??????? | | # # # #### "" ???????? | | # # ####### # T" ???????? | | # % ########## "" ########????????? | | # ##???????# k"" # ?????????? | | # !!* ##???????#o ????????? | | # * ## ###??????## < ?????????? | | # * # # #???????# [ ?????????? | | # ## ###########rr = ;#" ?????????? | | # "T" ## ##?# # k u ! ##? |"???????????? | | ######### ##?# #u @ ;#??"????????????? | | ????????# #??# + = t ;#???????????????? | | ????????# #??# "T" g k ;#???????????????? | | ????????# #??# """ # #???????????????? | | ????????# #??# # % #???????????????? | | ????????# #??######## """= + ??????????? | | ????????# #??####???# """ # ?????????? | | ######### ### # ###?# """ #???"" ?????????? | | # # # # ### #???????????????? | | # """ # # ^ #???????????????? | | # """ # # """ ? #???????????????? | | # """ # # # """??? #???????????????? | | # # ""?????????????????????? | | # # ??????????????????????? | | # # !??????????????????????? | | # # # ??????????????????????? | | # "T" # # # *!??????????????????????? | | # """ # ########### !???????????????????????? | | # # #?????????? !???????????????????????? | | ######### #????????????????????????????????????? | | ????????# ###########??????????????????????????? | | ????????# ???????????????????????? | | ????????# ???????????????????????? | | ????????# ???????????????????????? | | ????????# ???????????????????????? | +----------------------------------------------------+ Best States ------------- Heat Dissipation 25 Energy Generation 14 Energy Capacity 250 Matter Stores 263 Matter Capacity 300 Sight Range 16 Terrain Scan Density 10 Evasion (%) 55 Targeting Accuracy 5 Item Schematics ----------------- None Robot Schematics ------------------ None Fabricated ------------ Nothing Alien Tech Used ----------------- None Achievements -------------- None Challenges ------------ None Game ------ Seed NeutronAdvancedGun Manual? 0 Play Time 00:11:31 Cumulative 3.5 hours Start 2023.03.08 @ 21:16:05 End 2023.03.08 @ 21:24:11 Sessions 1 Manual Loads 0 Difficulty Rogue Special Mode None Game No. 4 Rogue 3 Adventurer 1 Explorer 0 Win Type - Total 0 Types 0/0/0/0/0/0/0/0/0 Lore% 10 Gallery% 9 Achievement% 10 Wizard Run 0 Options --------- ASCII 0 Keyboard 0 Movement Arrows Keybinds 0 Fullscreen 1 Font 18/X11 Map View 76x50 Tactical HUD 0 Map Filters NONE Filters NONE Steam 1 RUN: 8dedb9c2-799b-4fc8-8630-18108ddefa8d